[Event "Late-Titled-Tuesday-Blitz-March-12-2024"]
[Site "Chess.com"]
[Date "2024.03.12"]
[Round "11"]
[White "GoValya"]
[Black "katharinareinecke"]
[Result "1/2-1/2"]
[WhiteElo "2230"]
[BlackElo "1981"]
[TimeControl "180+1"]
[EndTime "16:05:14 PDT"]
[Termination "Game drawn - insufficient material"]

1. d4 {[%clk 0:03:00.9]} 1... d5 {[%clk 0:02:56]} 2. Nf3 {[%clk 0:03:00.4]} 2...
Nf6 {[%clk 0:02:54.4]} 3. g3 {[%clk 0:03:00.6]} 3... e6 {[%clk 0:02:53.8]} 4.
Bg2 {[%clk 0:03:00.8]} 4... c5 {[%clk 0:02:40.8]} 5. c3 {[%clk 0:02:58.8]} 5...
Nc6 {[%clk 0:02:40.2]} 6. O-O {[%clk 0:02:58.3]} 6... Be7 {[%clk 0:02:40.2]} 7.
dxc5 {[%clk 0:02:58.6]} 7... Bxc5 {[%clk 0:02:38.9]} 8. b4 {[%clk 0:02:58.8]}
8... Be7 {[%clk 0:02:37.2]} 9. Nbd2 {[%clk 0:02:59]} 9... O-O {[%clk 0:02:35.8]}
10. Rb1 {[%clk 0:02:58.7]} 10... Bd7 {[%clk 0:02:30.9]} 11. Bb2 {[%clk 0:02:58]}
11... a6 {[%clk 0:02:29.7]} 12. a3 {[%clk 0:02:57.6]} 12... b5 {[%clk
0:02:29.6]} 13. Nb3 {[%clk 0:02:57]} 13... Rc8 {[%clk 0:02:28.2]} 14. Bc1 {[%clk
0:02:56.6]} 14... Ne4 {[%clk 0:02:26.2]} 15. Bd2 {[%clk 0:02:40.8]} 15... Bf6
{[%clk 0:02:21.2]} 16. Rc1 {[%clk 0:02:37]} 16... e5 {[%clk 0:02:10]} 17. h4
{[%clk 0:02:29.5]} 17... Be6 {[%clk 0:02:10.2]} 18. Nc5 {[%clk 0:02:13.9]} 18...
Nxc5 {[%clk 0:02:03.1]} 19. bxc5 {[%clk 0:02:14.8]} 19... Na5 {[%clk 0:01:58.4]}
20. Bg5 {[%clk 0:01:58.1]} 20... Rxc5 {[%clk 0:01:49.3]} 21. Nxe5 {[%clk
0:01:45.4]} 21... Bxg5 {[%clk 0:01:45.8]} 22. hxg5 {[%clk 0:01:45.7]} 22... Qxg5
{[%clk 0:01:41.4]} 23. Nd3 {[%clk 0:01:45.5]} 23... Rc7 {[%clk 0:01:34.9]} 24.
Nf4 {[%clk 0:01:41]} 24... Rd8 {[%clk 0:01:25.8]} 25. Qd4 {[%clk 0:01:25.4]}
25... Nc4 {[%clk 0:01:18.9]} 26. Rfd1 {[%clk 0:01:03.6]} 26... Nb2 {[%clk
0:01:04.3]} 27. Qb6 {[%clk 0:00:48.6]} 27... Rcd7 {[%clk 0:00:59.2]} 28. Nxe6
{[%clk 0:00:39.1]} 28... fxe6 {[%clk 0:00:59.2]} 29. Qxe6+ {[%clk 0:00:39.1]}
29... Kh8 {[%clk 0:00:59]} 30. Re1 {[%clk 0:00:29.7]} 30... Re7 {[%clk
0:00:52.5]} 31. Qb6 {[%clk 0:00:29]} 31... Rxe2 {[%clk 0:00:47.8]} 32. Rxe2
{[%clk 0:00:17.9]} 32... Qxc1+ {[%clk 0:00:47.2]} 33. Bf1 {[%clk 0:00:16.3]}
33... Rg8 {[%clk 0:00:41.7]} 34. Qe6 {[%clk 0:00:15.6]} 34... Nc4 {[%clk
0:00:30.9]} 35. Qxd5 {[%clk 0:00:14.8]} 35... Qxc3 {[%clk 0:00:28.8]} 36. Bg2
{[%clk 0:00:11.3]} 36... Qc1+ {[%clk 0:00:27]} 37. Kh2 {[%clk 0:00:11.1]} 37...
Qh6+ {[%clk 0:00:26.1]} 38. Bh3 {[%clk 0:00:11.6]} 38... Qf6 {[%clk 0:00:22]}
39. Qe6 {[%clk 0:00:10.1]} 39... Qxe6 {[%clk 0:00:20]} 40. Rxe6 {[%clk 0:00:11]}
40... Nxa3 {[%clk 0:00:19.8]} 41. Rxa6 {[%clk 0:00:11.6]} 41... Nc4 {[%clk
0:00:20.1]} 42. Be6 {[%clk 0:00:11.8]} 42... Rd8 {[%clk 0:00:18.1]} 43. Ra7
{[%clk 0:00:10.9]} 43... h6 {[%clk 0:00:17.1]} 44. Rb7 {[%clk 0:00:10.7]} 44...
Nd6 {[%clk 0:00:16]} 45. Rb6 {[%clk 0:00:11]} 45... Ne4 {[%clk 0:00:14.3]} 46.
Rxb5 {[%clk 0:00:09.4]} 46... Nxf2 {[%clk 0:00:14.4]} 47. Kg2 {[%clk 0:00:10.2]}
47... Ne4 {[%clk 0:00:14]} 48. Bf5 {[%clk 0:00:10.6]} 48... Nc3 {[%clk
0:00:14.1]} 49. Rb7 {[%clk 0:00:10.2]} 49... Rd2+ {[%clk 0:00:13.6]} 50. Kh3
{[%clk 0:00:10.3]} 50... Rd8 {[%clk 0:00:13.3]} 51. Rd7 {[%clk 0:00:10.1]} 51...
Rxd7 {[%clk 0:00:13]} 52. Bxd7 {[%clk 0:00:11]} 52... Nd5 {[%clk 0:00:12.9]} 53.
Bf5 {[%clk 0:00:10.1]} 53... Nf6 {[%clk 0:00:13.2]} 54. Bd3 {[%clk 0:00:10.1]}
54... Kg8 {[%clk 0:00:13.6]} 55. Kg2 {[%clk 0:00:10.5]} 55... Kf7 {[%clk
0:00:14]} 56. Kf3 {[%clk 0:00:11]} 56... Kg8 {[%clk 0:00:14.2]} 57. Bc4+ {[%clk
0:00:11.5]} 57... Kf8 {[%clk 0:00:14.4]} 58. Bd3 {[%clk 0:00:12.2]} 58... Ke7
{[%clk 0:00:14.6]} 59. Bc4 {[%clk 0:00:12.6]} 59... Kf8 {[%clk 0:00:14.8]} 60.
Bd3 {[%clk 0:00:13.1]} 60... Ke7 {[%clk 0:00:15.3]} 61. g4 {[%clk 0:00:13.2]}
61... Kd6 {[%clk 0:00:15.5]} 62. Bf5 {[%clk 0:00:13]} 62... Nxg4 {[%clk
0:00:15.4]} 63. Bxg4 {[%clk 0:00:13.1]} 63... Ke7 {[%clk 0:00:15.8]} 64. Kg3
{[%clk 0:00:13.6]} 64... Kf6 {[%clk 0:00:16.3]} 65. Bf3 {[%clk 0:00:14.5]} 65...
g5 {[%clk 0:00:16.3]} 66. Kg4 {[%clk 0:00:15.1]} 66... Kg6 {[%clk 0:00:16.4]}
67. Be4+ {[%clk 0:00:15.6]} 67... Kg7 {[%clk 0:00:16.6]} 68. Kh5 {[%clk
0:00:16.1]} 68... Kf6 {[%clk 0:00:17.1]} 69. Bf3 {[%clk 0:00:16.3]} 69... Ke5
{[%clk 0:00:17.4]} 70. Bg4 {[%clk 0:00:17.2]} 70... Kf4 {[%clk 0:00:17.8]} 71.
Be2 {[%clk 0:00:17.2]} 71... Kg3 {[%clk 0:00:18.7]} 72. Bg4 {[%clk 0:00:17.3]}
72... Kf4 {[%clk 0:00:19.6]} 73. Be2 {[%clk 0:00:17.4]} 73... Ke5 {[%clk
0:00:20.5]} 74. Kg4 {[%clk 0:00:17.5]} 74... Kf6 {[%clk 0:00:20.6]} 75. Bd3
{[%clk 0:00:17.4]} 75... Kg7 {[%clk 0:00:21]} 76. Kh5 {[%clk 0:00:17.7]} 76...
Kf6 {[%clk 0:00:21.5]} 77. Be2 {[%clk 0:00:17.7]} 77... Ke5 {[%clk 0:00:22]} 78.
Kxh6 {[%clk 0:00:18.2]} 78... Kf4 {[%clk 0:00:22.5]} 79. Kh5 {[%clk 0:00:18.3]}
79... Ke5 {[%clk 0:00:23]} 80. Bg4 {[%clk 0:00:18.6]} 80... Kd4 {[%clk
0:00:23.8]} 81. Kxg5 {[%clk 0:00:18.9]} 1/2-1/2

[Event "Late-Titled-Tuesday-Blitz-March-12-2024"]
[Site "Chess.com"]
[Date "2024.03.12"]
[Round "11"]
[White "WilsonPalencia21"]
[Black "RandomNoob04"]
[Result "1/2-1/2"]
[WhiteElo "2582"]
[BlackElo "2658"]
[TimeControl "180+1"]
[EndTime "16:05:17 PDT"]
[Termination "Game drawn - insufficient material"]

1. d4 {[%clk 0:02:55.5]} 1... Nf6 {[%clk 0:02:59.6]} 2. c4 {[%clk 0:02:54.4]}
2... c5 {[%clk 0:03:00.2]} 3. d5 {[%clk 0:02:54.3]} 3... b5 {[%clk 0:03:00.9]}
4. cxb5 {[%clk 0:02:55.2]} 4... a6 {[%clk 0:03:01.6]} 5. bxa6 {[%clk 0:02:56.1]}
5... g6 {[%clk 0:03:02.1]} 6. Nc3 {[%clk 0:02:56.6]} 6... Bg7 {[%clk 0:03:02.8]}
7. e4 {[%clk 0:02:57.2]} 7... O-O {[%clk 0:03:03.5]} 8. e5 {[%clk 0:02:57.8]}
8... Ne8 {[%clk 0:03:03]} 9. h4 {[%clk 0:02:54.3]} 9... Bxe5 {[%clk 0:03:03.3]}
10. h5 {[%clk 0:02:53.5]} 10... Nxa6 {[%clk 0:02:58.8]} 11. Bh6 {[%clk
0:02:52.3]} 11... Ng7 {[%clk 0:02:59.4]} 12. Qd2 {[%clk 0:02:50.6]} 12... Qa5
{[%clk 0:02:57.9]} 13. Nf3 {[%clk 0:02:49.2]} 13... Bf6 {[%clk 0:02:58.3]} 14.
g4 {[%clk 0:02:32.9]} 14... Rb8 {[%clk 0:02:56.8]} 15. Rc1 {[%clk 0:02:31.2]}
15... Nb4 {[%clk 0:01:53.5]} 16. a3 {[%clk 0:02:25]} 16... Nxd5 {[%clk
0:01:52.7]} 17. Nxd5 {[%clk 0:02:20.1]} 17... Qxd2+ {[%clk 0:01:51.6]} 18. Nxd2
{[%clk 0:02:11.5]} 18... Bxb2 {[%clk 0:01:48.6]} 19. Rb1 {[%clk 0:01:56.9]}
19... Re8 {[%clk 0:01:28.7]} 20. Bg2 {[%clk 0:01:48.8]} 20... Ne6 {[%clk
0:01:06.9]} 21. Nc4 {[%clk 0:01:43.6]} 21... Be5 {[%clk 0:01:07.4]} 22. Rxb8
{[%clk 0:01:28.4]} 22... Bxb8 {[%clk 0:01:08.3]} 23. Be3 {[%clk 0:01:28.1]}
23... Ba6 {[%clk 0:01:03.3]} 24. Bf1 {[%clk 0:01:03.2]} 24... Bb7 {[%clk
0:00:49.8]} 25. Bg2 {[%clk 0:01:03.2]} 25... Ba6 {[%clk 0:00:40.8]} 26. Ncb6
{[%clk 0:01:02.2]} 26... d6 {[%clk 0:00:14]} 27. Kd2 {[%clk 0:00:56.9]} 27...
Nd4 {[%clk 0:00:10.6]} 28. Rb1 {[%clk 0:00:48.6]} 28... e6 {[%clk 0:00:07.9]}
29. Nf6+ {[%clk 0:00:47.5]} 29... Kf8 {[%clk 0:00:07.5]} 30. Nxe8 {[%clk
0:00:41.4]} 30... Kxe8 {[%clk 0:00:08.4]} 31. hxg6 {[%clk 0:00:37.4]} 31... hxg6
{[%clk 0:00:08]} 32. Bxd4 {[%clk 0:00:35.7]} 32... cxd4 {[%clk 0:00:08.9]} 33.
Bf1 {[%clk 0:00:28.1]} 33... Bxf1 {[%clk 0:00:03.7]} 34. Rxf1 {[%clk 0:00:27.3]}
34... Bc7 {[%clk 0:00:04.2]} 35. Nc4 {[%clk 0:00:26]} 35... d5 {[%clk
0:00:04.5]} 36. Nb2 {[%clk 0:00:24.9]} 36... Kd7 {[%clk 0:00:04.9]} 37. a4
{[%clk 0:00:23.4]} 37... e5 {[%clk 0:00:04.7]} 38. f3 {[%clk 0:00:23.2]} 38...
Kd6 {[%clk 0:00:02.7]} 39. Rc1 {[%clk 0:00:15.7]} 39... Ba5+ {[%clk 0:00:02.3]}
40. Kd3 {[%clk 0:00:15.7]} 40... f5 {[%clk 0:00:02.2]} 41. gxf5 {[%clk
0:00:15.2]} 41... gxf5 {[%clk 0:00:03.1]} 42. Nc4+ {[%clk 0:00:14.7]} 42...
dxc4+ {[%clk 0:00:03.3]} 43. Kxc4 {[%clk 0:00:14.7]} 43... Bb6 {[%clk
0:00:02.8]} 44. Rb1 {[%clk 0:00:14.2]} 44... Bc7 {[%clk 0:00:03]} 45. Rb5 {[%clk
0:00:13.6]} 45... Kc6 {[%clk 0:00:02.9]} 46. Rc5+ {[%clk 0:00:13.1]} 46... Kd6
{[%clk 0:00:03.5]} 47. Rb5 {[%clk 0:00:12.2]} 47... Kc6 {[%clk 0:00:03.9]} 48.
a5 {[%clk 0:00:12.6]} 48... e4 {[%clk 0:00:02.7]} 49. fxe4 {[%clk 0:00:13.2]}
49... fxe4 {[%clk 0:00:03.6]} 50. Rd5 {[%clk 0:00:13.4]} 50... d3 {[%clk
0:00:03.5]} 51. Rd4 {[%clk 0:00:13.1]} 51... Bxa5 {[%clk 0:00:02.3]} 52. Rxe4
{[%clk 0:00:13.1]} 52... d2 {[%clk 0:00:02.9]} 53. Rd4 {[%clk 0:00:13.7]} 53...
Kc7 {[%clk 0:00:03.4]} 54. Rd5 {[%clk 0:00:13.4]} 54... Kc6 {[%clk 0:00:03.1]}
55. Rd3 {[%clk 0:00:12.8]} 55... Kc7 {[%clk 0:00:03.5]} 56. Kb3 {[%clk
0:00:13.2]} 56... Kc6 {[%clk 0:00:03.4]} 57. Kc4 {[%clk 0:00:13.1]} 57... Kc7
{[%clk 0:00:03.6]} 58. Kd4 {[%clk 0:00:12.8]} 58... Kc6 {[%clk 0:00:03.1]} 59.
Ke3 {[%clk 0:00:13.4]} 59... Kc5 {[%clk 0:00:03.4]} 60. Ke2 {[%clk 0:00:14.1]}
60... Kc4 {[%clk 0:00:03.8]} 61. Rd7 {[%clk 0:00:14]} 61... Bb4 {[%clk
0:00:03.9]} 62. Kd1 {[%clk 0:00:14.1]} 62... Kb3 {[%clk 0:00:03.8]} 63. Rd3+
{[%clk 0:00:13.5]} 63... Kc4 {[%clk 0:00:03.6]} 64. Rd7 {[%clk 0:00:13.2]} 64...
Kb3 {[%clk 0:00:04.1]} 65. Rb7 {[%clk 0:00:13.1]} 65... Kc4 {[%clk 0:00:04.4]}
66. Kc2 {[%clk 0:00:13]} 66... Bc3 {[%clk 0:00:02.6]} 67. Rc7+ {[%clk 0:00:13]}
67... Kb4 {[%clk 0:00:03.2]} 68. Rb7+ {[%clk 0:00:08.4]} 68... Kc4 {[%clk
0:00:03.7]} 69. Rb8 {[%clk 0:00:08.9]} 69... Kd4 {[%clk 0:00:03.2]} 70. Rd8+
{[%clk 0:00:06.6]} 70... Kc4 {[%clk 0:00:03.6]} 71. Rc8+ {[%clk 0:00:07.1]}
71... Kb4 {[%clk 0:00:04.2]} 72. Rxc3 {[%clk 0:00:05.5]} 72... d1=Q+ {[%clk
0:00:04.3]} 73. Kxd1 {[%clk 0:00:06.1]} 73... Kxc3 {[%clk 0:00:05.2]} 1/2-1/2

[Event "Late-Titled-Tuesday-Blitz-March-12-2024"]
[Site "Chess.com"]
[Date "2024.03.12"]
[Round "11"]
[White "Boundless_Strike"]
[Black "KetiTsatsalashvili"]
[Result "0-1"]
[WhiteElo "2592"]
[BlackElo "2480"]
[TimeControl "180+1"]
[EndTime "16:05:22 PDT"]
[Termination "KetiTsatsalashvili won by checkmate"]

1. d4 {[%clk 0:03:00.9]} 1... Nf6 {[%clk 0:02:59.8]} 2. f3 {[%clk 0:03:01.3]}
2... d5 {[%clk 0:02:59.4]} 3. e4 {[%clk 0:03:02]} 3... dxe4 {[%clk 0:02:59.3]}
4. Nc3 {[%clk 0:03:02.6]} 4... exf3 {[%clk 0:02:58.9]} 5. Nxf3 {[%clk
0:03:03.5]} 5... g6 {[%clk 0:02:58.5]} 6. Bc4 {[%clk 0:02:57.3]} 6... Bg7 {[%clk
0:02:57.3]} 7. h4 {[%clk 0:02:57.8]} 7... O-O {[%clk 0:02:45.7]} 8. h5 {[%clk
0:02:56.1]} 8... Nxh5 {[%clk 0:02:44.4]} 9. Rxh5 {[%clk 0:02:55.5]} 9... gxh5
{[%clk 0:02:45.3]} 10. Qd3 {[%clk 0:02:56.1]} 10... h6 {[%clk 0:02:36.6]} 11.
Bxh6 {[%clk 0:02:52]} 11... e6 {[%clk 0:02:19.9]} 12. Ng5 {[%clk 0:02:39.1]}
12... f5 {[%clk 0:02:13.1]} 13. Bxg7 {[%clk 0:02:16.2]} 13... Kxg7 {[%clk
0:02:14]} 14. Qe3 {[%clk 0:02:06.1]} 14... Nc6 {[%clk 0:01:59.7]} 15. Ne2 {[%clk
0:01:17.1]} 15... Qf6 {[%clk 0:01:44.4]} 16. g3 {[%clk 0:01:07.3]} 16... e5
{[%clk 0:01:33.6]} 17. O-O-O {[%clk 0:00:58.7]} 17... Nxd4 {[%clk 0:00:36.7]}
18. Nxd4 {[%clk 0:00:50.5]} 18... exd4 {[%clk 0:00:37]} 19. Rxd4 {[%clk
0:00:50]} 19... Kg6 {[%clk 0:00:34.9]} 20. Nf3 {[%clk 0:00:47.1]} 20... Kg7
{[%clk 0:00:25.1]} 21. Kb1 {[%clk 0:00:33.6]} 21... b6 {[%clk 0:00:14.6]} 22. a3
{[%clk 0:00:30.9]} 22... Rb8 {[%clk 0:00:14.2]} 23. Rh4 {[%clk 0:00:20.9]} 23...
Bb7 {[%clk 0:00:11.2]} 24. Rxh5 {[%clk 0:00:20.9]} 24... Bxf3 {[%clk 0:00:09.8]}
25. Qxf3 {[%clk 0:00:14.4]} 25... Rh8 {[%clk 0:00:08.1]} 26. Bd3 {[%clk
0:00:09.2]} 26... Rxh5 {[%clk 0:00:07.8]} 27. Qxh5 {[%clk 0:00:10.1]} 27... Rf8
{[%clk 0:00:07.7]} 28. Qf3 {[%clk 0:00:09.8]} 28... Qg5 {[%clk 0:00:07.5]} 29.
Qf2 {[%clk 0:00:08.8]} 29... Rf7 {[%clk 0:00:07.3]} 30. Qd4+ {[%clk 0:00:09.1]}
30... Qf6 {[%clk 0:00:06.8]} 31. Qf4 {[%clk 0:00:09.2]} 31... Qd6 {[%clk
0:00:06.1]} 32. Qg5+ {[%clk 0:00:09]} 32... Qg6 {[%clk 0:00:06.4]} 33. Qf4
{[%clk 0:00:09.7]} 33... Kf8 {[%clk 0:00:06.2]} 34. Qe5 {[%clk 0:00:09.2]} 34...
Re7 {[%clk 0:00:06.3]} 35. Qh8+ {[%clk 0:00:07.4]} 35... Qg8 {[%clk 0:00:06]}
36. Qf6+ {[%clk 0:00:06.5]} 36... Qf7 {[%clk 0:00:06.5]} 37. Qh8+ {[%clk
0:00:06.8]} 37... Qg8 {[%clk 0:00:05.7]} 38. Qf6+ {[%clk 0:00:07.1]} 38... Rf7
{[%clk 0:00:06.2]} 39. Qd8+ {[%clk 0:00:06.5]} 39... Kg7 {[%clk 0:00:06.9]} 40.
Qg5+ {[%clk 0:00:07.1]} 40... Kh8 {[%clk 0:00:05.3]} 41. Qh6+ {[%clk 0:00:06.8]}
41... Rh7 {[%clk 0:00:04.7]} 42. Qf6+ {[%clk 0:00:06.6]} 42... Qg7 {[%clk
0:00:05.3]} 43. Qxf5 {[%clk 0:00:06.7]} 43... Rh1+ {[%clk 0:00:04.9]} 44. Ka2
{[%clk 0:00:06.5]} 44... Qg8+ {[%clk 0:00:05.3]} 45. c4 {[%clk 0:00:06.7]} 45...
Kg7 {[%clk 0:00:05.7]} 46. g4 {[%clk 0:00:06.6]} 46... Rh6 {[%clk 0:00:04.6]}
47. g5 {[%clk 0:00:06.7]} 47... Rd6 {[%clk 0:00:05.3]} 48. Qe5+ {[%clk
0:00:07.1]} 48... Kf8 {[%clk 0:00:05.3]} 49. Qf5+ {[%clk 0:00:06.9]} 49... Qf7
{[%clk 0:00:05.4]} 50. Qc8+ {[%clk 0:00:07.1]} 50... Kg7 {[%clk 0:00:05.5]} 51.
g6 {[%clk 0:00:03.8]} 51... Qd7 {[%clk 0:00:04.8]} 52. Qa8 {[%clk 0:00:02.3]}
52... Rxd3 {[%clk 0:00:04.6]} 53. Qh1 {[%clk 0:00:03.1]} 53... Kxg6 {[%clk
0:00:02.6]} 54. Qe4+ {[%clk 0:00:03.6]} 54... Kf7 {[%clk 0:00:02.9]} 55. Qf4+
{[%clk 0:00:03.2]} 55... Ke7 {[%clk 0:00:03.5]} 56. Qg5+ {[%clk 0:00:03.4]}
56... Kd6 {[%clk 0:00:03.5]} 57. Qg6+ {[%clk 0:00:03.8]} 57... Kc5 {[%clk
0:00:03.6]} 58. b4+ {[%clk 0:00:01.9]} 58... Kxc4 {[%clk 0:00:03.9]} 59. Qe4+
{[%clk 0:00:02.5]} 59... Kc3 {[%clk 0:00:04.2]} 60. Qe5+ {[%clk 0:00:02.1]}
60... Qd4 {[%clk 0:00:03.8]} 61. Qxc7+ {[%clk 0:00:01.9]} 61... Qc4+ {[%clk
0:00:04.4]} 62. Ka1 {[%clk 0:00:01.1]} 62... Qxc7 {[%clk 0:00:04]} 63. Kb1
{[%clk 0:00:01.5]} 63... Rd1+ {[%clk 0:00:04.6]} 64. Ka2 {[%clk 0:00:01.8]}
64... Qc4# {[%clk 0:00:05.5]} 0-1

[Event "Late-Titled-Tuesday-Blitz-March-12-2024"]
[Site "Chess.com"]
[Date "2024.03.12"]
[Round "11"]
[White "finec2"]
[Black "wild3000"]
[Result "0-1"]
[WhiteElo "2211"]
[BlackElo "2393"]
[TimeControl "180+1"]
[EndTime "16:05:27 PDT"]
[Termination "wild3000 won on time"]

1. e4 {[%clk 0:02:59.7]} 1... a5 {[%clk 0:02:40.9]} 2. d4 {[%clk 0:02:58.2]}
2... h5 {[%clk 0:02:41.8]} 3. Bc4 {[%clk 0:02:51.6]} 3... e6 {[%clk 0:02:41]} 4.
Nc3 {[%clk 0:02:45.8]} 4... c6 {[%clk 0:02:41.1]} 5. Nf3 {[%clk 0:02:40]} 5...
b5 {[%clk 0:02:38.8]} 6. Bd3 {[%clk 0:02:39.8]} 6... b4 {[%clk 0:02:38.2]} 7.
Ne2 {[%clk 0:02:39.3]} 7... h4 {[%clk 0:02:36.6]} 8. h3 {[%clk 0:02:38.8]} 8...
d5 {[%clk 0:02:32.1]} 9. e5 {[%clk 0:02:37.2]} 9... c5 {[%clk 0:02:29.9]} 10. c3
{[%clk 0:02:37.2]} 10... Nc6 {[%clk 0:02:26.4]} 11. Be3 {[%clk 0:02:35.8]} 11...
c4 {[%clk 0:02:23.3]} 12. Bc2 {[%clk 0:02:35.5]} 12... Bd7 {[%clk 0:02:09.2]}
13. O-O {[%clk 0:02:32.9]} 13... a4 {[%clk 0:02:02.8]} 14. Bxa4 {[%clk
0:02:05.5]} 14... Rxa4 {[%clk 0:02:02.1]} 15. Qxa4 {[%clk 0:01:58.5]} 15... Nxe5
{[%clk 0:01:55.7]} 16. Qd1 {[%clk 0:01:58]} 16... Nxf3+ {[%clk 0:01:55.7]} 17.
gxf3 {[%clk 0:01:58.2]} 17... Nh6 {[%clk 0:01:44.5]} 18. Bf4 {[%clk 0:01:48.6]}
18... Nf5 {[%clk 0:01:44]} 19. Kh1 {[%clk 0:01:32.8]} 19... Qa5 {[%clk
0:01:29.2]} 20. Qd2 {[%clk 0:01:19.9]} 20... Be7 {[%clk 0:01:25.1]} 21. Rg1
{[%clk 0:01:12.7]} 21... g6 {[%clk 0:01:24.3]} 22. Bg5 {[%clk 0:00:46.6]} 22...
f6 {[%clk 0:01:24]} 23. Bf4 {[%clk 0:00:46.6]} 23... g5 {[%clk 0:01:24.1]} 24.
Bh2 {[%clk 0:00:46.5]} 24... Kf7 {[%clk 0:01:13.4]} 25. f4 {[%clk 0:00:46]}
25... Nd6 {[%clk 0:00:54.8]} 26. f3 {[%clk 0:00:42.3]} 26... Nf5 {[%clk
0:00:42.9]} 27. fxg5 {[%clk 0:00:40]} 27... fxg5 {[%clk 0:00:43.8]} 28. f4
{[%clk 0:00:35.9]} 28... Rg8 {[%clk 0:00:42]} 29. fxg5 {[%clk 0:00:35]} 29...
Rg6 {[%clk 0:00:40.9]} 30. Be5 {[%clk 0:00:31.3]} 30... bxc3 {[%clk 0:00:37.4]}
31. bxc3 {[%clk 0:00:30.8]} 31... Qd8 {[%clk 0:00:33.4]} 32. Bf4 {[%clk
0:00:23.7]} 32... Bd6 {[%clk 0:00:31.3]} 33. Rab1 {[%clk 0:00:22]} 33... Qc7
{[%clk 0:00:26.7]} 34. Rg4 {[%clk 0:00:18.1]} 34... Ng3+ {[%clk 0:00:24.1]} 35.
Nxg3 {[%clk 0:00:16.4]} 35... hxg3 {[%clk 0:00:25]} 36. Bxd6 {[%clk 0:00:15.7]}
36... Qxd6 {[%clk 0:00:24.9]} 37. Rb7 {[%clk 0:00:15.3]} 37... Ke7 {[%clk
0:00:23.8]} 38. Qf4 {[%clk 0:00:14.3]} 38... Qxf4 {[%clk 0:00:23.1]} 39. Rxf4
{[%clk 0:00:14.6]} 39... Rxg5 {[%clk 0:00:23.4]} 40. Kg2 {[%clk 0:00:15]} 40...
Kd6 {[%clk 0:00:22.6]} 41. Rf3 {[%clk 0:00:15.1]} 41... Bc6 {[%clk 0:00:18.6]}
42. Rb6 {[%clk 0:00:14.3]} 42... e5 {[%clk 0:00:17]} 43. Rxg3 {[%clk 0:00:12.9]}
43... Rxg3+ {[%clk 0:00:16.1]} 44. Kxg3 {[%clk 0:00:13.1]} 44... exd4 {[%clk
0:00:17]} 45. cxd4 {[%clk 0:00:12]} 45... Kc7 {[%clk 0:00:17.9]} 46. Rb1 {[%clk
0:00:11.8]} 46... Be8 {[%clk 0:00:17.2]} 47. Rc1 {[%clk 0:00:12.2]} 47... Kb6
{[%clk 0:00:16.5]} 48. Rc3 {[%clk 0:00:12.7]} 48... Kb5 {[%clk 0:00:16.3]} 49.
a3 {[%clk 0:00:13.4]} 49... Kc6 {[%clk 0:00:15.9]} 50. Kf4 {[%clk 0:00:13.9]}
50... Kd6 {[%clk 0:00:16]} 51. Kf5 {[%clk 0:00:14.2]} 51... Bd7+ {[%clk
0:00:15.8]} 52. Kf6 {[%clk 0:00:12.8]} 52... Be8 {[%clk 0:00:14.4]} 53. h4
{[%clk 0:00:12.4]} 53... Bh5 {[%clk 0:00:14.5]} 54. Kg5 {[%clk 0:00:12.4]} 54...
Bf3 {[%clk 0:00:14.7]} 55. h5 {[%clk 0:00:12.5]} 55... Ke6 {[%clk 0:00:14.1]}
56. h6 {[%clk 0:00:10.6]} 56... Be4 {[%clk 0:00:14.2]} 57. a4 {[%clk 0:00:10]}
57... Kd6 {[%clk 0:00:12.2]} 58. a5 {[%clk 0:00:09.3]} 58... Kc6 {[%clk
0:00:12.2]} 59. Kf6 {[%clk 0:00:08.6]} 59... Kb5 {[%clk 0:00:12.1]} 60. a6
{[%clk 0:00:06.8]} 60... Kxa6 {[%clk 0:00:12.2]} 61. Re3 {[%clk 0:00:06.6]}
61... Bb1 {[%clk 0:00:04.6]} 62. Kg7 {[%clk 0:00:03.9]} 62... Kb5 {[%clk
0:00:04.7]} 63. h7 {[%clk 0:00:03.9]} 63... Bxh7 {[%clk 0:00:04.3]} 64. Kxh7
{[%clk 0:00:04.2]} 64... Kb4 {[%clk 0:00:05.2]} 65. Kg6 {[%clk 0:00:04.2]} 65...
c3 {[%clk 0:00:05.6]} 0-1